fUSD/lending_fUSD_20260702
["ID","MTS","AMOUNT","RATE_DAILY","PERIOD"]
[426905115,1783002633000,-208.18662543,0.00027558,2]
[426905118,1783002633000,-233.29427636,0.00027558,2]
[426905116,1783002633000,-230.79740027,0.00027558,2]
[426905123,1783002633000,-442.46218601,0.00027558,2]
[426905124,1783002633000,-186.8264155,0.00027558,2]
[426905106,1783002633000,-500.0,0.000275,7]
[426905133,1783002633000,-356.53233109,0.00027558,2]
[426905111,1783002633000,-422.78405171,0.00027558,2]
[426905099,1783002633000,-500.0,0.00027315,2]
[426905071,1783002633000,-157.54,0.00026268,2]
[426905095,1783002633000,-17712.17,0.00027154,2]
[426905132,1783002633000,-235.01052264,0.00027558,2]
[426905070,1783002633000,-1225.48,0.00026232,7]
[426905069,1783002633000,-225.49,0.00026083,2]
[426905072,1783002633000,-2756.4752292,0.0002629,2]
[426905074,1783002633000,-172.45,0.00026847,2]
[426905073,1783002633000,-152.83,0.0002659,2]
[426905075,1783002633000,-24460.15133663,0.00026863,2]
[426905076,1783002633000,-500.0,0.00026901,2]
[426905082,1783002633000,-180.0,0.00027,2]
[426905084,1783002633000,-212.0212142,0.00027001,2]
[426905080,1783002633000,-1000.0,0.00027,2]
[426905083,1783002633000,-236.48008405,0.00027001,2]
[426905079,1783002633000,-1445.51489682,0.00027,2]
[426905081,1783002633000,-156.0,0.00027,2]
[426905077,1783002633000,-28646.089089,0.0002699,2]
[426905078,1783002633000,-235.0,0.00027,2]
[426905085,1783002633000,-284.10409095,0.00027001,2]
[426905096,1783002633000,-18446.31469707,0.00027296,2]
[426905086,1783002633000,-214.29751958,0.00027001,2]
[426905088,1783002633000,-17671.7341,0.00027008,2]
[426905087,1783002633000,-1351.9384,0.00027008,2]
[426905089,1783002633000,-160.0,0.00027067,2]
[426905090,1783002633000,-216.69616408,0.00027076,2]
[426905091,1783002633000,-5000.0,0.00027108,2]
[426905092,1783002633000,-508.0,0.00027137,2]
[426905093,1783002633000,-500.0,0.00027153,2]
[426905094,1783002633000,-457.90961816,0.00027153,2]
[426905097,1783002633000,-1445.51489682,0.000273,2]
[426905122,1783002633000,-252.21480549,0.00027558,2]
[426905161,1783002633000,-200.0,0.00027931,2]
[426905128,1783002633000,-230.38216146,0.00027558,2]
[426905164,1783002633000,-156.0,0.00028,2]
[426905162,1783002633000,-4183.66465387,0.00027938,2]
[426905165,1783002633000,-5920.57,0.00028,2]
[426905158,1783002633000,-214.474321,0.00027832,14]
[426905167,1783002633000,-465.64,0.00028,2]
[426905166,1783002633000,-180.0,0.00028,2]
[426905168,1783002633000,-11853.57,0.00028075,2]
[426905169,1783002633000,-1445.51489682,0.000281,2]
[426905179,1783002633000,-3478.01302648,0.000284,2]
[426905177,1783002633000,-3478.01302648,0.000284,2]
[426905178,1783002633000,-3478.01302648,0.000284,2]
[426905170,1783002633000,-1071.55,0.00028364,7]
[426905154,1783002633000,-402.52,0.0002779,7]
[426905171,1783002633000,-699.16,0.00028364,7]
[426905175,1783002633000,-3478.01302648,0.000284,2]
[426905172,1783002633000,-9117.86,0.00028364,7]
[426905174,1783002633000,-3478.01302648,0.000284,2]
[426905173,1783002633000,-3478.01302653,0.000284,2]
[426905180,1783002633000,-3478.01302648,0.000284,2]
[426905125,1783002633000,-160.97722834,0.00027558,2]
[426905184,1783002633000,-267.46,0.000285,2]
[426905181,1783002633000,-3478.01302648,0.000284,2]
[426905183,1783002633000,-2487.94378944,0.00028413,2]
[426905185,1783002633000,-150.0,0.00028525,5]
[426905186,1783002633000,-163.86,0.00028666,30]
[426905187,1783002633000,-167.63,0.00028666,30]
[426905176,1783002633000,-3478.01302648,0.000284,2]
[426905159,1783002633000,-292.750342,0.00027832,14]
[426905182,1783002633000,-3478.01302648,0.000284,2]
[426905163,1783002633000,-235.0,0.00028,2]
[426905129,1783002633000,-568.2081819,0.00027558,2]
[426905160,1783002633000,-24460.15133663,0.00027851,2]
[426905127,1783002633000,-214.6032776,0.00027558,2]
[426905126,1783002633000,-190.66499088,0.00027558,2]
[426905130,1783002633000,-428.59503916,0.00027558,2]
[426905134,1783002633000,-216.45750821,0.00027558,2]
[426905137,1783002633000,-153.16418728,0.00027558,2]
[426905136,1783002633000,-165.37522115,0.00027558,2]
[426905139,1783002633000,-152.36655528,0.00027558,2]
[426905138,1783002633000,-234.62222497,0.00027558,2]
[426905141,1783002633000,-154.07256398,0.00027558,2]
[426905150,1783002633000,-160.0,0.00027592,2]
[426905152,1783002633000,-200.0,0.00027641,2]
[426905151,1783002633000,-1445.51489682,0.000276,2]
[426905135,1783002633000,-178.8219509,0.00027558,2]
[426905147,1783002633000,-244.42334149,0.00027558,2]
[426905142,1783002633000,-206.56186356,0.00027558,2]
[426905156,1783002633000,-214.474321,0.00027797,14]
[426905155,1783002633000,-203.649259,0.00027797,14]
[426905153,1783002633000,-152.01526153,0.00027655,2]
[426905148,1783002633000,-166.12284417,0.00027558,2]
[426905157,1783002633000,-1445.51489682,0.000278,2]
[426905146,1783002633000,-222.66827034,0.00027558,2]
[426905143,1783002633000,-231.74306975,0.00027558,2]
[426905145,1783002633000,-164.30943335,0.00027558,2]
[426905140,1783002633000,-352.93166742,0.00027558,2]
[426905144,1783002633000,-249.78533693,0.00027558,2]
[426905149,1783002633000,-171.22165976,0.00027558,2]
[426905216,1783002634000,-1000.0,0.000295,2]
[426905221,1783002634000,-17761.40556107,0.00029827,2]
[426905211,1783002634000,-261.78592672,0.00029314,2]
[426905214,1783002634000,-2361.464,0.00029448,23]
[426905218,1783002634000,-261.78592672,0.00029569,2]
[426905217,1783002634000,-150.0,0.00029534,2]
[426905219,1783002634000,-463.92274305,0.00029592,2]
[426905220,1783002634000,-261.78592672,0.00029824,2]
[426905206,1783002634000,-500.0,0.00029078,2]
[426905224,1783002634000,-1000.0,0.00029863,7]
[426905223,1783002634000,-1000.0,0.00029863,7]
[426905225,1783002634000,-1000.0,0.00029863,7]
[426905235,1783002634000,-800.0,0.0003,2]
[426905226,1783002634000,-1000.0,0.00029863,7]
[426905227,1783002634000,-1000.0,0.00029863,7]
[426905228,1783002634000,-1000.0,0.00029863,7]
[426905234,1783002634000,-3817.56914642,0.0003,2]
[426905230,1783002634000,-1617.98708688,0.00029863,7]
[426905208,1783002634000,-163.86,0.00029156,2]
[426905222,1783002634000,-6698.74577556,0.00029827,2]
[426905215,1783002634000,-167.985,0.00029448,23]
[426905195,1783002634000,-1649.0,0.00028904,2]
[426905210,1783002634000,-163.76,0.0002916,2]
[426905232,1783002634000,-2000.0,0.00029999,15]
[426905190,1783002634000,-261.78592675,0.00028804,2]
[426905188,1783002634000,-163.93,0.0002867,30]
[426905191,1783002634000,-24460.15133663,0.00028839,2]
[426905189,1783002634000,-163.34,0.0002869,30]
[426905192,1783002634000,-508.0,0.00028842,3]
[426905194,1783002634000,-191.6135179,0.00028904,2]
[426905203,1783002634000,-160.0,0.00029,2]
[426905193,1783002634000,-5931.0,0.00028904,2]
[426905204,1783002634000,-463.92274305,0.00029044,2]
[426905196,1783002634000,-1656.0,0.00028904,2]
[426905198,1783002634000,-163.93,0.00028914,7]
[426905201,1783002634000,-172.0,0.00029,2]
[426905202,1783002634000,-192.0,0.00029,2]
[426905200,1783002634000,-243.0,0.00029,2]
[426905197,1783002634000,-163.86,0.00028911,7]
[426905199,1783002634000,-2000.0,0.00028969,6]
[426905209,1783002634000,-163.93,0.00029158,2]
[426905205,1783002634000,-261.78592672,0.00029059,2]
[426905207,1783002634000,-189.45702276,0.00029078,2]
[426905213,1783002634000,-165.49,0.00029321,2]
[426905212,1783002634000,-463.92274305,0.00029318,2]
[426905231,1783002634000,-463.92274305,0.00029866,2]
[426905262,1783002634000,-500.0,0.00030166,2]
[426905233,1783002634000,-2308.54449973,0.0003,2]
[426905258,1783002634000,-500.0,0.00030166,2]
[426905265,1783002634000,-500.0,0.00030166,2]
[426905263,1783002634000,-500.0,0.00030166,2]
[426905267,1783002634000,-500.0,0.00030166,2]
[426905269,1783002634000,-200.0,0.00030166,2]
[426905271,1783002634000,-200.0,0.00030166,2]
[426905268,1783002634000,-200.0,0.00030166,2]
[426905264,1783002634000,-500.0,0.00030166,2]
[426905274,1783002634000,-200.0,0.00030166,2]
[426905253,1783002634000,-500.0,0.00030166,2]
[426905273,1783002634000,-200.0,0.00030166,2]
[426905272,1783002634000,-200.0,0.00030166,2]
[426905276,1783002634000,-200.0,0.00030166,2]
[426905278,1783002634000,-500.0,0.00030166,2]
[426905275,1783002634000,-200.0,0.00030166,2]
[426905277,1783002634000,-200.0,0.00030166,2]
[426905281,1783002634000,-200.0,0.00030166,2]
[426905280,1783002634000,-610.0,0.00030166,2]
[426905279,1783002634000,-500.0,0.00030166,2]
[426905229,1783002634000,-1000.0,0.00029863,7]
[426905270,1783002634000,-200.0,0.00030166,2]
[426905257,1783002634000,-500.0,0.00030166,2]
[426905266,1783002634000,-500.0,0.00030166,2]
[426905254,1783002634000,-500.0,0.00030166,2]
[426905236,1783002634000,-800.0,0.0003,2]
[426905240,1783002634000,-163.35,0.00030136,7]
[426905238,1783002634000,-261.78592672,0.0003008,2]
[426905239,1783002634000,-187.05,0.000301,7]
[426905256,1783002634000,-500.0,0.00030166,2]
[426905243,1783002634000,-463.92274305,0.0003014,2]
[426905244,1783002634000,-170.55549444,0.00030147,28]
[426905245,1783002634000,-355.61763448,0.00030147,28]
[426905242,1783002634000,-150.0,0.00030137,30]
[426905246,1783002634000,-94.4810138,0.00030147,28]
[426905237,1783002634000,-155.49700238,0.0003,2]
[426905241,1783002634000,-167.64,0.00030136,7]
[426905248,1783002634000,-1187.81745407,0.00030147,28]
[426905261,1783002634000,-500.0,0.00030166,2]
[426905250,1783002634000,-800.0,0.00030166,30]
[426905260,1783002634000,-500.0,0.00030166,2]
[426905251,1783002634000,-800.0,0.00030166,30]
[426905249,1783002634000,-200.0,0.00030166,2]
[426905252,1783002634000,-586.0,0.00030166,30]
[426905259,1783002634000,-500.0,0.00030166,2]
[426905255,1783002634000,-200.0,0.00030166,2]
[426905247,1783002634000,-794.02736746,0.00030147,28]
[426905296,1783002635000,-200.0,0.00030166,2]
[426905295,1783002635000,-200.0,0.00030166,2]
[426905297,1783002635000,-200.0,0.00030166,2]
[426905294,1783002635000,-200.0,0.00030166,2]
[426905292,1783002635000,-200.0,0.00030166,2]
[426905290,1783002635000,-200.0,0.00030166,2]
[426905285,1783002635000,-200.0,0.00030166,2]
[426905283,1783002635000,-200.0,0.00030166,2]
[426905284,1783002635000,-200.0,0.00030166,2]
[426905282,1783002635000,-200.0,0.00030166,2]
[426905287,1783002635000,-200.0,0.00030166,2]
[426905286,1783002635000,-200.0,0.00030166,2]
[426905293,1783002635000,-200.0,0.00030166,2]
[426905288,1783002635000,-200.0,0.00030166,2]
[426905289,1783002635000,-200.0,0.00030166,2]
[426905291,1783002635000,-200.0,0.00030166,2]
[426905300,1783002635000,-200.0,0.00030166,2]
[426905298,1783002635000,-200.0,0.00030166,2]
[426905313,1783002635000,-1344.22,0.00022925,2]
[426905311,1783002635000,-182.29876977,0.00030441,30]
[426905309,1783002635000,-152.01526153,0.00030344,2]
[426905312,1783002635000,-116.18695699,0.00030457,26]
[426905307,1783002635000,-1287.0,0.00030275,2]
[426905314,1783002635000,-503.86201367,0.00030457,26]
[426905308,1783002635000,-261.78592672,0.00030335,2]
[426905310,1783002635000,-463.92274305,0.00030414,2]
[426905305,1783002635000,-197.0,0.00030166,2]
[426905304,1783002635000,-200.0,0.00030166,2]
[426905302,1783002635000,-200.0,0.00030166,2]
[426905301,1783002635000,-200.0,0.00030166,2]
[426905303,1783002635000,-200.0,0.00030166,2]
[426905299,1783002635000,-200.0,0.00030166,2]
[426905306,1783002635000,-200.0,0.00030166,2]
[426905337,1783002640000,-1926.84646738,0.00027397,10]
[426905333,1783002640000,-218.22,0.00024658,2]
[426905335,1783002640000,-352.37,0.00027397,10]
[426905336,1783002640000,-1957.196598,0.00027397,10]
[426905334,1783002640000,-150.95693462,0.00027397,10]
[426905339,1783002640000,-167.69,0.00028663,30]
[426905338,1783002640000,-163.79,0.00028663,30]
[426905342,1783002640000,-163.79,0.00029399,30]
[426905341,1783002640000,-163.79,0.00029154,2]
[426905346,1783002640000,-167.69,0.00030136,7]
[426905344,1783002640000,-137.311069,0.00029645,7]
[426905343,1783002640000,-26.478931,0.00029645,7]
[426905347,1783002640000,-25.2497475,0.00030136,30]
[426905345,1783002640000,-163.79,0.00029891,2]
[426905340,1783002640000,-163.79,0.00028908,7]
[426905396,1783002642000,-153.0,0.0003104,7]
[426905403,1783002642000,-3633.6672928,0.00031275,2]
[426905397,1783002642000,-2000.0,0.00031099,10]
[426905401,1783002642000,-250.71164464,0.0003127,2]
[426905400,1783002642000,-463.92274305,0.00031236,2]
[426905402,1783002642000,-92652.806028,0.00031275,2]
[426905398,1783002642000,-261.78592672,0.000311,2]
[426905395,1783002642000,-605.8,0.0003104,30]
[426905410,1783002642000,-309.44050264,0.0003135,2]
[426905394,1783002642000,-2000.0,0.00031039,20]
[426905405,1783002642000,-706.0192568,0.00031275,2]
[426905404,1783002642000,-70985.0800812,0.00031275,2]
[426905413,1783002642000,-644.53,0.00031375,2]
[426905407,1783002642000,-2000.0,0.00031336,5]
[426905415,1783002642000,-151.0,0.00031377,2]
[426905406,1783002642000,-2000.0,0.00031328,4]
[426905414,1783002642000,-185.36,0.00031375,2]
[426905416,1783002642000,-350.0,0.00031394,2]
[426905409,1783002642000,-9000.0,0.00031337,5]
[426905393,1783002642000,-150.0,0.00031011,2]
[426905399,1783002642000,-18844.98,0.000312,2]
[426905388,1783002642000,-463.92274305,0.00030962,2]
[426905379,1783002642000,-1607.1561,0.00030647,28]
[426905389,1783002642000,-3000.0,0.00031,25]
[426905411,1783002642000,-151.0,0.00031373,2]
[426905369,1783002642000,-511.08823908,0.000269,2]
[426905370,1783002642000,-867.61,0.000269,2]
[426905372,1783002642000,-138.6002525,0.00030136,30]
[426905373,1783002642000,-147.53935886,0.00030457,26]
[426905374,1783002642000,-1044.93223085,0.00030457,26]
[426905371,1783002642000,-609.69123391,0.000269,2]
[426905375,1783002642000,-187.47943963,0.00030457,26]
[426905378,1783002642000,-261.78592672,0.0003059,2]
[426905380,1783002642000,-172.45,0.00030683,2]
[426905377,1783002642000,-508.0,0.00030548,5]
[426905376,1783002642000,-800.0,0.000305,2]
[426905382,1783002642000,-24460.15133663,0.00030814,2]
[426905392,1783002642000,-267.46,0.0003101,2]
[426905381,1783002642000,-463.92274305,0.00030688,2]
[426905383,1783002642000,-261.78592672,0.00030845,2]
[426905385,1783002642000,-336.60150031,0.00030923,2]
[426905384,1783002642000,-200.0,0.000309,11]
[426905386,1783002642000,-253.00747385,0.00030923,2]
[426905391,1783002642000,-800.0,0.00031,2]
[426905387,1783002642000,-254.21986792,0.00030923,2]
[426905390,1783002642000,-1000.0,0.00031,7]
[426905412,1783002642000,-185.37,0.00031373,2]
[426905449,1783002642000,-350.0,0.00031801,3]
[426905419,1783002642000,-2000.0,0.00031498,14]
[426905452,1783002642000,-2000.0,0.00031899,11]
[426905461,1783002642000,-2000.0,0.00031962,2]
[426905458,1783002642000,-168.33840262,0.000319,2]
[426905460,1783002642000,-205.69219555,0.000319,6]
[426905457,1783002642000,-1326.34605749,0.000319,2]
[426905459,1783002642000,-275.02197042,0.000319,2]
[426905456,1783002642000,-1300.0,0.000319,11]
[426905462,1783002642000,-2000.0,0.00031962,30]
[426905463,1783002642000,-500.0,0.00031979,14]
[426905455,1783002642000,-193.07448292,0.000319,2]
[426905464,1783002642000,-2000.0,0.00031996,7]
[426905476,1783002642000,-1000.0,0.00031999,2]
[426905475,1783002642000,-1000.0,0.00031999,2]
[426905471,1783002642000,-1000.0,0.00031999,2]
[426905467,1783002642000,-151.0,0.00031997,7]
[426905466,1783002642000,-151.0,0.00031997,7]
[426905469,1783002642000,-1000.0,0.00031999,2]
[426905468,1783002642000,-2000.0,0.00031998,60]
[426905473,1783002642000,-1000.0,0.00031999,2]
[426905417,1783002642000,-273.3184227,0.00031432,2]
[426905465,1783002642000,-154.9324923,0.00031997,7]
[426905454,1783002642000,-33361.7046,0.000319,2]
[426905474,1783002642000,-1000.0,0.00031999,2]
[426905451,1783002642000,-2000.0,0.00031874,3]
[426905422,1783002642000,-198.00936004,0.00031507,15]
[426905453,1783002642000,-2000.0,0.000319,2]
[426905421,1783002642000,-800.0,0.000315,2]
[426905420,1783002642000,-1292.59555588,0.000315,120]
[426905427,1783002642000,-500.0,0.000316,11]
[426905426,1783002642000,-443.85,0.00031575,3]
[426905424,1783002642000,-16484.9749497,0.00031527,2]
[426905418,1783002642000,-300.0,0.00031484,7]
[426905425,1783002642000,-2000.0,0.00031555,120]
[426905429,1783002642000,-700.0,0.000317,11]
[426905423,1783002642000,-463.92274305,0.0003151,2]
[426905448,1783002642000,-1000.0,0.000318,11]
[426905443,1783002642000,-500.0,0.00031799,7]
[426905432,1783002642000,-180.34477181,0.00031756,2]
[426905435,1783002642000,-463.92274305,0.00031784,2]
[426905434,1783002642000,-350.02,0.00031759,21]
[426905450,1783002642000,-24460.15133663,0.00031802,2]
[426905440,1783002642000,-500.0,0.00031799,7]
[426905446,1783002642000,-60425.84355576,0.000318,10]
[426905431,1783002642000,-218.00953008,0.0003175,2]
[426905433,1783002642000,-2352.0,0.00031758,10]
[426905439,1783002642000,-1000.0,0.00031799,2]
[426905514,1783002643000,-3115047.65639162,0.00032,30]
[426905518,1783002643000,-159.08,0.00032,7]
[426905517,1783002643000,-1461.01,0.00032,7]
[426905525,1783002643000,-278.99,0.00032,2]
[426905515,1783002643000,-184.88,0.00032,120]
[426905503,1783002643000,-37435.9534,0.00032,2]
[426905508,1783002643000,-173.40636751,0.00032,30]
[426905506,1783002643000,-173.40636752,0.00032,30]
[426905507,1783002643000,-173.40636751,0.00032,30]
[426905516,1783002643000,-176.79,0.00032,7]
[426905505,1783002643000,-252878.78999619,0.00032,2]
[426905512,1783002643000,-800.0,0.00032,5]
[426905522,1783002643000,-800.0,0.00032,5]
[426905534,1783002643000,-150.0,0.00032047,2]
[426905523,1783002643000,-3551.94,0.00032,2]
[426905521,1783002643000,-2429.27059903,0.00032,2]
[426905520,1783002643000,-1062.56852184,0.00032,2]
[426905524,1783002643000,-160.0,0.00032,120]
[426905526,1783002643000,-200.0,0.00032,2]
[426905528,1783002643000,-4573.70996346,0.0003201,2]
[426905529,1783002643000,-534.0,0.00032027,30]
[426905527,1783002643000,-216.69616408,0.00032,30]
[426905532,1783002643000,-150.0,0.00032047,2]
[426905530,1783002643000,-200.0,0.00032035,2]
[426905533,1783002643000,-150.0,0.00032047,2]
[426905509,1783002643000,-173.40636751,0.00032,30]
[426905519,1783002643000,-187.06,0.00032,7]
[426905510,1783002643000,-800.0,0.00032,5]
[426905485,1783002643000,-500.0,0.00031999,7]
[426905511,1783002643000,-800.0,0.00032,5]
[426905536,1783002643000,-463.92274305,0.00032058,2]
[426905479,1783002643000,-1000.0,0.00031999,2]
[426905477,1783002643000,-1000.0,0.00031999,2]
[426905478,1783002643000,-1000.0,0.00031999,2]
[426905481,1783002643000,-1000.0,0.00031999,2]
[426905480,1783002643000,-1000.0,0.00031999,2]
[426905486,1783002643000,-500.0,0.00031999,7]
[426905487,1783002643000,-500.0,0.00031999,7]
[426905483,1783002643000,-1000.0,0.00031999,2]
[426905482,1783002643000,-1000.0,0.00031999,2]
[426905488,1783002643000,-500.0,0.00031999,7]
[426905484,1783002643000,-2000.0,0.00031999,9]
[426905504,1783002643000,-4000.0,0.00032,14]
[426905489,1783002643000,-500.0,0.00031999,7]
[426905491,1783002643000,-500.0,0.00031999,7]
[426905490,1783002643000,-500.0,0.00031999,7]
[426905500,1783002643000,-500.0,0.00031999,7]
[426905493,1783002643000,-500.0,0.00031999,7]
[426905492,1783002643000,-500.0,0.00031999,7]
[426905494,1783002643000,-500.0,0.00031999,7]
[426905495,1783002643000,-500.0,0.00031999,7]
[426905499,1783002643000,-500.0,0.00031999,7]
[426905496,1783002643000,-500.0,0.00031999,7]
[426905497,1783002643000,-500.0,0.00031999,7]
[426905502,1783002643000,-14449.4346418,0.00032,9]
[426905513,1783002643000,-800.0,0.00032,5]
[426905501,1783002643000,-500.0,0.00031999,7]
[426905531,1783002643000,-150.0,0.00032047,2]
[426905498,1783002643000,-500.0,0.00031999,7]
[426905537,1783002643000,-350.0,0.00032116,2]
[426905565,1783002643000,-151.0,0.00032206,2]
[426905567,1783002643000,-508.0,0.00032253,7]
[426905568,1783002643000,-150.0,0.00032268,30]
[426905571,1783002643000,-200.0,0.0003232,2]
[426905574,1783002643000,-261.41398426,0.00032429,2]
[426905578,1783002643000,-236.17485,0.0003247,31]
[426905581,1783002643000,-800.0,0.000325,5]
[426905582,1783002643000,-800.0,0.000325,5]
[426905596,1783002643000,-150.0,0.00032572,30]
[426905586,1783002643000,-1461.01,0.000325,7]
[426905580,1783002643000,-2027.69158866,0.000325,14]
[426905577,1783002643000,-236.17485,0.0003247,31]
[426905576,1783002643000,-236.17484,0.0003247,31]
[426905583,1783002643000,-800.0,0.000325,5]
[426905584,1783002643000,-800.0,0.000325,5]
[426905587,1783002643000,-159.08,0.000325,7]
[426905579,1783002643000,-236.17485,0.0003247,31]
[426905585,1783002643000,-2110.0,0.000325,2]
[426905590,1783002643000,-645.33848289,0.0003253,2]
[426905588,1783002643000,-1000.0,0.000325,2]
[426905592,1783002643000,-174.45350796,0.0003255,2]
[426905591,1783002643000,-151.0,0.00032539,5]
[426905593,1783002643000,-150.0,0.00032562,2]
[426905594,1783002643000,-604.39238101,0.00032571,2]
[426905597,1783002643000,-208.27771909,0.00032575,30]
[426905595,1783002643000,-152.0,0.00032572,5]
[426905535,1783002643000,-150.0,0.00032047,2]
[426905575,1783002643000,-208.27771909,0.00032438,30]
[426905573,1783002643000,-317.0,0.000324,2]
[426905589,1783002643000,-14588.75702092,0.00032509,2]
[426905572,1783002643000,-463.92274305,0.00032332,2]
[426905570,1783002643000,-218.00953006,0.00032311,2]
[426905539,1783002643000,-1278.0,0.00032144,2]
[426905549,1783002643000,-151.0,0.00032199,2]
[426905538,1783002643000,-1362.0,0.00032144,2]
[426905541,1783002643000,-157.0,0.00032193,5]
[426905540,1783002643000,-1231.0,0.00032144,2]
[426905544,1783002643000,-151.0,0.00032197,2]
[426905543,1783002643000,-573.75,0.00032197,2]
[426905546,1783002643000,-185.36,0.00032197,2]
[426905548,1783002643000,-151.0,0.00032199,2]
[426905547,1783002643000,-151.0,0.00032199,2]
[426905542,1783002643000,-350.0,0.00032193,5]
[426905545,1783002643000,-574.05,0.00032197,2]
[426905550,1783002643000,-151.0,0.00032199,2]
[426905556,1783002643000,-151.99,0.00032199,2]
[426905569,1783002643000,-208.27771909,0.00032301,30]
[426905551,1783002643000,-151.17,0.00032199,2]
[426905566,1783002643000,-151.0,0.00032206,2]
[426905564,1783002643000,-151.39,0.00032206,2]
[426905563,1783002643000,-151.0,0.00032206,2]
[426905562,1783002643000,-151.0,0.00032206,2]
[426905559,1783002643000,-151.0,0.00032206,2]
[426905561,1783002643000,-151.0,0.00032206,2]
[426905557,1783002643000,-150.0,0.000322,10]
[426905553,1783002643000,-151.0,0.00032199,2]
[426905552,1783002643000,-151.72,0.00032199,2]
[426905554,1783002643000,-151.95,0.00032199,2]
[426905555,1783002643000,-151.0,0.00032199,2]
[426905625,1783002644000,-1800.0,0.00032767,7]
[426905631,1783002644000,-1800.0,0.00032767,7]
[426905624,1783002644000,-384.0,0.00032767,2]
[426905626,1783002644000,-1800.0,0.00032767,7]
[426905628,1783002644000,-1800.0,0.00032767,7]
[426905627,1783002644000,-1800.0,0.00032767,7]
[426905629,1783002644000,-1800.0,0.00032767,7]
[426905630,1783002644000,-1800.0,0.00032767,7]
[426905632,1783002644000,-1800.0,0.00032767,7]
[426905641,1783002644000,-1800.0,0.00032767,7]
[426905636,1783002644000,-1800.0,0.00032767,7]
[426905635,1783002644000,-1800.0,0.00032767,7]
[426905634,1783002644000,-1800.0,0.00032767,7]
[426905639,1783002644000,-1800.0,0.00032767,7]
[426905640,1783002644000,-1800.0,0.00032767,7]
[426905637,1783002644000,-1800.0,0.00032767,7]
[426905621,1783002644000,-268.0,0.00032743,2]
[426905638,1783002644000,-1800.0,0.00032767,7]
[426905633,1783002644000,-1800.0,0.00032767,7]
[426905623,1783002644000,-384.0,0.0003276,2]
[426905609,1783002644000,-57607.2214925,0.0003265,2]
[426905620,1783002644000,-177.23873809,0.00032735,2]
[426905643,1783002644000,-1800.0,0.00032767,7]
[426905598,1783002644000,-419.65,0.00032588,3]
[426905603,1783002644000,-168.68623912,0.00032595,2]
[426905605,1783002644000,-30000.0,0.000326,4]
[426905600,1783002644000,-231.78724572,0.00032595,2]
[426905606,1783002644000,-463.92274305,0.00032606,2]
[426905607,1783002644000,-200.0,0.00032643,2]
[426905608,1783002644000,-273.62,0.00032649,7]
[426905622,1783002644000,-384.0,0.00032758,2]
[426905610,1783002644000,-166.62217529,0.00032658,30]
[426905612,1783002644000,-208.27771909,0.00032685,30]
[426905613,1783002644000,-384.0,0.00032715,2]
[426905614,1783002644000,-200.0,0.00032715,2]
[426905616,1783002644000,-384.0,0.00032721,2]
[426905615,1783002644000,-463.92274305,0.00032716,2]
[426905618,1783002644000,-384.0,0.00032734,2]
[426905617,1783002644000,-384.0,0.00032732,2]
[426905619,1783002644000,-318.45650684,0.00032735,2]
[426905611,1783002644000,-1396.0,0.00032673,7]
[426905642,1783002644000,-1800.0,0.00032767,7]
[426905649,1783002644000,-1800.0,0.00032767,7]
[426905678,1783002644000,-384.0,0.00032801,2]